Workbook

Sheet Estimated Costs
A1: University of Arkansas System Health Benefits Calculator for 2024 Plan Year
A2: Disclaimer: | J2: Hide these rows prior to distribution
A3: The scenarios presented here are illustrative and are only meant to provide a basis for comparison among the three medical plan options. The scenarios are not a guarantee of future results. The actual costs of services may vary depending on when and where services are performed.
A6: Instructions:
A8: First, select your desired coverage election in cell B13 (highlighted blue).
A9: Next, add your monthly employee premium for health insurance for each medical plan option in cells B16, B17, and B18 (highlighted green).
A10: Refer to your campus HR website or contact your campus HR department if you are unsure of your monthly empoyee premium.
A11: The monthly employee premium should be on a 12-month basis.
A13: Choose your coverage election | B13: Employee Only
A15: Enter your monthly premium (12-month basis) for the following plans:
A16: Health Savings Plan | B16: 80 | K16: Activate Macro? | L16: Y
A17: Classic Plan | B17: 120
A18: Premier Plan | B18: 160
A20: You will see how total health care costs compare among each of the medical plan options in two different claim scenarios:
A21: • A "Low Health Care Needs" scenario
A22: • A "High Health Care Needs" scenario
A24: Output: | N24: Prior to release, click this button
A25: Based on your inputs, see below for two examples illustrating your total estimated out-of-pocket expenses under each plan.
A27: Employee Only - Low Health Care Needs | K27: =+IF(OR($B$13="Employee Only",$L$16="N"),1,0) -> 1
K28: 1
A29: ="• 1 preventive doctor’s office visit: "&TEXT(Lists!$D$19,"$0")&" ($0 member cost in-network, since in-network preventive visits are covered at 100%)" -> • 1 preventive doctor’s office visit: $193 ($0 member cost in-network, since in-network preventive visits are covered at 100%) | K29: 1
A30: ="• 1 diagnostic doctor’s office visit: "&TEXT(Lists!$D$20,"$0") -> • 1 diagnostic doctor’s office visit: $143 | K30: 1
A31: ="• 1 Tier-2 antibiotic: "&TEXT(Lists!$D$30,"$0") -> • 1 Tier-2 antibiotic: $177 | K31: 1
K32: 1
A33: Your Annual Costs | K33: 1
B34: Health Savings Plan | C34: Classic Plan | D34: Premier Plan | K34: 1
A35: Preventive visit | B35: 0 | C35: 0 | D35: 0 | K35: 1
A36: Office visit | B36: =+Lists!$D$20 -> 143 | C36: =O46 -> 35 | D36: =P46 -> 25 | K36: 1
A37: Tier-2 prescription drugs | B37: =+Lists!$D$30 -> 177 | C37: =O53 -> 62 | D37: =P53 -> 57 | K37: 1
A38: Total out-of-pocket expenses | B38: =+SUM(B35:B37) -> 320 | C38: =+SUM(C35:C37) -> 97 | D38: =+SUM(D35:D37) -> 82 | K38: 1 | L38: 2024 Plan Designs
A39: University contribution to Health Savings Account | B39: =+IF($B$13="Employee Only",$N$59,$N$60) -> 650 | C39: N/A | D39: N/A | K39: 1 | N39: Health Savings Plan | O39: Classic Plan | P39: Premier Plan
A40: Employee premium for coverage | B40: =+$B$16*12 -> 960 | C40: =+$B$17*12 -> 1440 | D40: =+$B$18*12 -> 1920 | K40: =+IF(OR($B$13="Employee Only",$L$16="N"),1,0) -> 1 | L40: Medical
A41: Employee net cost | B41: =+B38+B40-B39 -> 630 | C41: =+C38+C40 -> 1537 | D41: =+D38+D40 -> 2002 | K41: 1 | L41: Deductible | M41: Single | N41: 3200 | O41: 1350 | P41: 800
K42: 1 | M42: Family | N42: =N41*2 -> 6400 | O42: 2700 | P42: 1600
A43: ="Based on these expenses, the lowest-cost option for you would be the "&INDEX(B34:D34,MATCH(MIN(B41:D41),B41:D41,0))&"." -> Based on these expenses, the lowest-cost option for you would be the Health Savings Plan. | K43: 1 | L43: Coinsurance | N43: 0.1 | O43: 0.25 | P43: 0.2
K44: 1 | L44: Out-of-Pocket Maximum | M44: Single | N44: 6750 | O44: 5250 | P44: 3200
K45: 1 | M45: Family | N45: 13300 | O45: 10500 | P45: 6400
A46: Employee Only - High Health Care Needs | K46: 1 | L46: PCP Office Visit | N46: =N43 -> 0.1 | O46: 35 | P46: 25
K47: 1 | L47: Specialist Office Visit | N47: =N43 -> 0.1 | O47: 55 | P47: 45
A48: ="• 1 preventive doctor’s office visit: "&TEXT(Lists!$D$19,"$0")&" ($0 member cost in-network, since in-network preventive visits are covered at 100%)" -> • 1 preventive doctor’s office visit: $193 ($0 member cost in-network, since in-network preventive visits are covered at 100%) | K48: 1
A49: ="• 1 emergency room visit: "&TEXT(Lists!$D$21,"$0,000") -> • 1 emergency room visit: $1,385 | K49: 1 | L49: Prescription Drug | N49: Health Savings Plan | O49: Classic Plan | P49: Premier Plan
A50: ="• 3 days in the hospital: "&TEXT(Lists!$D$22*3,"$0,000") -> • 3 days in the hospital: $9,165 | K50: 1 | L50: Out-of-Pocket Maximum | M50: Single | N50: Combined with Medical | O50: 1800 | P50: 1800
A51: ="• 6 specialist doctor’s office visits: "&TEXT(Lists!$D$23*6,"$000") -> • 6 specialist doctor’s office visits: $858 | K51: 1 | M51: Family | N51: Combined with Medical | O51: 3600 | P51: 3600
A52: ="• 2 Tier-2 antibiotics: "&TEXT(Lists!$D$30*2,"$0") -> • 2 Tier-2 antibiotics: $354 | K52: 1 | L52: Tier 1 Drug | N52: 0.1 | O52: 18 | P52: 14
K53: 1 | L53: Tier 2 Drug | N53: 0.1 | O53: 62 | P53: 57
A54: Your Annual Costs | K54: 1 | L54: Tier 3 Drug | N54: 0.1 | O54: 97 | P54: 92
B55: Health Savings Plan | C55: Classic Plan | D55: Premier Plan | K55: 1
A56: Preventive visit | B56: 0 | C56: 0 | D56: 0 | K56: 1 | L56: Hospical Inpatient Services | M56: Copay, then coinsurance | N56: 0.1 | O56: 300 | P56: 300
A57: Emergency room visit (admitted) | B57: =+Lists!$D$21 -> 1385 | C57: 0 | D57: 0 | K57: 1 | L57: Outpatient Diagnostic Testing and Surgical Services | M57: Copay, then coinsurance | N57: 0.1 | O57: 160 | P57: 80
A58: Hospital stay | B58: =+(N41-B57)+(Lists!$D$22*3-(N41-B57))*N43 -> 2550 | C58: =O56+O41+(Lists!$D$22*3-O56-O41)*O43 -> 3528.75 | D58: =P56+P41+(Lists!$D$22*3-P56-P41)*P43 -> 2713 | K58: 1
A59: Specialist office visits | B59: =Lists!D23*6*N47 -> 85.8 | C59: =6*O47 -> 330 | D59: =6*P47 -> 270 | K59: 1 | L59: HSA Contribution | M59: Single | N59: 650
A60: Tier-2 prescriptions drugs | B60: =Lists!D30*N53 -> 17.7 | C60: =O53*2 -> 124 | D60: =P53*2 -> 114 | K60: 1 | L60: HSA Contribution | M60: Family | N60: 1300
A61: Total out-of-pocket expenses | B61: =+SUM(B56:B60) -> 4038.5 | C61: =+SUM(C56:C60) -> 3982.75 | D61: =+SUM(D56:D60) -> 3097 | K61: 1
A62: University contribution to Health Savings Account | B62: =+IF($B$13="Employee Only",$N$59,$N$60) -> 650 | C62: N/A | D62: N/A | K62: 1
A63: Employee premium for coverage | B63: =+$B$16*12 -> 960 | C63: =+$B$17*12 -> 1440 | D63: =+$B$18*12 -> 1920 | K63: 1
A64: Employee net cost | B64: =+B61+B63-B62 -> 4348.5 | C64: =+C61+C63 -> 5422.75 | D64: =+D61+D63 -> 5017 | K64: 1
K65: 1
A66: ="Based on these expenses, the lowest-cost option for you would be the "&INDEX(B55:D55,MATCH(MIN(B64:D64),B64:D64,0))&"." -> Based on these expenses, the lowest-cost option for you would be the Health Savings Plan. | K66: 1
K67: 1
K68: 1
A69: Employee and Spouse - Low Health Care Needs | K69: =+IF(OR($B$13="Employee & Spouse",$L$16="N"),1,0) -> 0
K70: =+IF(OR($B$13="Employee & Spouse",$L$16="N"),1,0) -> 0
A71: Employee's Expenses | K71: 0
A72: ="• 12 Tier 1 drugs: "&TEXT(Lists!$D$29*12,"$0") -> • 12 Tier 1 drugs: $468 | K72: 0
A73: ="• 2 doctor’s office visits: "&TEXT(Lists!$D$20*2,"$0") -> • 2 doctor’s office visits: $286 | K73: 0
A74: ="• 2 specialist doctor’s office visits: "&TEXT(Lists!$D$23*2,"$000") -> • 2 specialist doctor’s office visits: $286 | K74: 0
A75: ="• 1 preventive doctor’s office visit: "&TEXT(Lists!$D$19,"$0")&" ($0 member cost in-network, since in-network preventive visits are covered at 100%)" -> • 1 preventive doctor’s office visit: $193 ($0 member cost in-network, since in-network preventive visits are covered at 100%) | K75: 0
K76: 0
A77: Spouse's Expenses | K77: 0
A78: ="• 6 Tier 1 drugs: "&TEXT(Lists!$D$29*6,"$0") -> • 6 Tier 1 drugs: $234 | K78: 0
A79: ="• 2 doctor’s office visits: "&TEXT(Lists!$D$20*2,"$0") -> • 2 doctor’s office visits: $286 | K79: 0
A80: ="• 2 Tier-2 drugs: "&TEXT(Lists!$D$30*2,"$0") -> • 2 Tier-2 drugs: $354 | K80: 0
A81: ="• 1 preventive doctor’s office visit: "&TEXT(Lists!$D$19,"$0")&" ($0 member cost in-network, since in-network preventive visits are covered at 100%)" -> • 1 preventive doctor’s office visit: $193 ($0 member cost in-network, since in-network preventive visits are covered at 100%) | K81: 0
K82: 0
A83: Your Annual Costs | K83: 0
B84: Health Savings Plan | C84: Classic Plan | D84: Premier Plan | K84: 0
A85: Preventive visits for each family member | B85: 0 | C85: 0 | D85: 0 | K85: 0
A86: Employee's Tier 1 prescription drugs | B86: =+Lists!D29*12 -> 468 | C86: =12*O52 -> 216 | D86: =12*P52 -> 168 | K86: 0
A87: Employee's office visits | B87: =+Lists!D20*2 -> 286 | C87: =2*O46 -> 70 | D87: =2*P46 -> 50 | K87: 0
A88: Employee's specialist office visits | B88: =+Lists!D23*2 -> 286 | C88: =2*O47 -> 110 | D88: =2*P47 -> 90 | K88: 0
A89: Spouse's Tier 1 prescription drugs | B89: =+Lists!D29*6 -> 234 | C89: =6*O52 -> 108 | D89: =6*P52 -> 84 | K89: 0
A90: Spouse's office visits | B90: =+Lists!D20*2 -> 286 | C90: =2*O46 -> 70 | D90: =2*P46 -> 50 | K90: 0
A91: Spouse's Tier 2 prescription drugs | B91: =+Lists!D30*2 -> 354 | C91: =2*O53 -> 124 | D91: =2*P53 -> 114 | K91: 0
A92: Total out-of-pocket expenses | B92: =+SUM(B85:B91) -> 1914 | C92: =+SUM(C85:C91) -> 698 | D92: =+SUM(D85:D91) -> 556 | K92: 0
A93: University contribution to Health Savings Account | B93: =+IF($B$13="Employee Only",$N$59,$N$60) -> 650 | C93: N/A | D93: N/A | K93: 0
A94: Employee premium for coverage | B94: =+$B$16*12 -> 960 | C94: =+$B$17*12 -> 1440 | D94: =+$B$18*12 -> 1920 | K94: 0
A95: Employee net cost | B95: =+B92+B94-B93 -> 2224 | C95: =+C92+C94 -> 2138 | D95: =+D92+D94 -> 2476 | K95: 0
K96: 0
A97: ="Based on these expenses, the lowest cost option for you would be the "&INDEX(B84:D84,MATCH(MIN(B95:D95),B95:D95,0))&"." -> Based on these expenses, the lowest cost option for you would be the Classic Plan. | K97: 0
K98: 0
K99: 0
A100: Employee and Spouse - High Health Care Needs | K100: 0
K101: 0
A102: Spouse's Expenses | K102: 0
A103: ="• 1 ambulance: "&TEXT(Lists!$D$24,"$0,000") -> • 1 ambulance: $1,168 | K103: 0
A104: ="• 1 emergency room visit: "&TEXT(Lists!$D$21,"$0,000") -> • 1 emergency room visit: $1,385 | K104: 0
A105: ="• 4 days in the hospital: "&TEXT(Lists!$D$22*4,"$0,000") -> • 4 days in the hospital: $12,220 | K105: 0
A106: ="• 1 Tier 3 medication: "&TEXT(Lists!$D$31,"$0,000") -> • 1 Tier 3 medication: $1,766 | K106: 0
A107: ="• 3 specialist doctor’s office visits: "&TEXT(Lists!$D$23*3,"$0") -> • 3 specialist doctor’s office visits: $429 | K107: 0
A108: ="• 14 physical therapy visits: "&TEXT(Lists!$D$25*14,"$0,000") -> • 14 physical therapy visits: $3,752 | K108: 0
K109: 0
A110: Your Annual Costs | K110: 0
B111: Health Savings Plan | C111: Classic Plan | D111: Premier Plan | K111: 0
A112: Spouse's ambulance | B112: =+Lists!D24 -> 1168 | C112: 0 | D112: 0 | K112: 0
A113: Spouse's emergency room visit (admitted) | B113: =+Lists!D21 -> 1385 | C113: 0 | D113: 0 | K113: 0
A114: Spouse's hospital stay | B114: =+(N41-B113-B112)+(Lists!D22*4-(N41-B113-B112))*N43 -> 1804.3 | C114: =MIN(O56+O41+(Lists!$D$22*4-O56-O41)*O43,O44) -> 4292.5 | D114: =MIN(P56+P41+(Lists!$D$22*4-P56-P41)*P43,P44) -> 3200 | K114: 0
A115: Spouse's Tier 3 prescription drugs | B115: =Lists!D31*N54 -> 176.6 | C115: =O54*1 -> 97 | D115: =P54*1 -> 92 | K115: 0
A116: Spouse's specialist office visits | B116: =Lists!D23*3*N47 -> 42.9 | C116: =MIN(3*O47,MAX(0,O44-C114)) -> 165 | D116: =MIN(3*P47,MAX(0,P44-D114)) -> 0 | K116: 0
A117: Spouse's physical therapy visits | B117: =Lists!D25*14*N43 -> 375.2 | C117: =MIN(O47+(Lists!$D$25*14-O47)*O43,MAX(O44-C116-C114-C113-C112,0)) -> 792.5 | D117: =MIN(P47+(Lists!$D$25*14-P47)*P43,MAX(P44-D116-D114-D113-D112,0)) -> 0 | K117: 0
A118: Total out-of-pocket expenses | B118: =+SUM(B112:B117) -> 4952 | C118: =+SUM(C112:C117) -> 5347 | D118: =+SUM(D112:D117) -> 3292 | K118: 0
A119: University contribution to Health Savings Account | B119: =+IF($B$13="Employee Only",$N$59,$N$60) -> 650 | C119: N/A | D119: N/A | K119: 0
A120: Employee premium for coverage | B120: =+$B$16*12 -> 960 | C120: =+$B$17*12 -> 1440 | D120: =+$B$18*12 -> 1920 | K120: 0
A121: Employee net cost | B121: =+B118+B120-B119 -> 5262 | C121: =+C118+C120 -> 6787 | D121: =+D118+D120 -> 5212 | K121: 0
K122: 0
A123: ="Based on these expenses, the lowest cost option for you would be the "&INDEX(B111:D111,MATCH(MIN(B121:D121),B121:D121,0))&"." -> Based on these expenses, the lowest cost option for you would be the Premier Plan. | K123: 0
K124: 0
K125: 0
A126: Employee and Child - Low Health Care Needs | K126: =+IF(OR($B$13="Employee & Child(ren)",$L$16="N"),1,0) -> 0
K127: =+IF(OR($B$13="Employee & Child(ren)",$L$16="N"),1,0) -> 0
A128: Employee's Expenses | K128: 0
A129: ="• 1 preventive doctor’s office visit: "&TEXT(Lists!$D$19,"$0")&" ($0 member cost in-network, since in-network preventive visits are covered at 100%)" -> • 1 preventive doctor’s office visit: $193 ($0 member cost in-network, since in-network preventive visits are covered at 100%) | K129: 0
A130: ="• 1 doctor’s office visit: "&TEXT(Lists!$D$20,"$0") -> • 1 doctor’s office visit: $143 | K130: 0
A131: ="• 2 Tier 1 drugs: "&TEXT(Lists!$D$29*2,"$0") -> • 2 Tier 1 drugs: $78 | K131: 0
K132: 0
A133: Child's Expenses | K133: 0
A134: ="• 1 preventive doctor’s office visit: "&TEXT(Lists!$D$19,"$0")&" ($0 member cost in-network, since in-network preventive visits are covered at 100%)" -> • 1 preventive doctor’s office visit: $193 ($0 member cost in-network, since in-network preventive visits are covered at 100%) | K134: 0
A135: ="• 1 Tier-2 drug: "&TEXT(Lists!$D$30,"$0") -> • 1 Tier-2 drug: $177 | K135: 0
A136: ="• 2 doctor’s office visits: "&TEXT(Lists!$D$20*2,"$0") -> • 2 doctor’s office visits: $286 | K136: 0
K137: 0
A138: Your Annual Costs | K138: 0
B139: Health Savings Plan | C139: Classic Plan | D139: Premier Plan | K139: 0
A140: Preventive visits for each family member | B140: 0 | C140: 0 | D140: 0 | K140: 0
A141: Employee's office visit | B141: =+Lists!D20 -> 143 | C141: =O46 -> 35 | D141: =P46 -> 25 | K141: 0
A142: Employee's Tier 1 prescription drugs | B142: =+Lists!D29*2 -> 78 | C142: =2*O52 -> 36 | D142: =2*P52 -> 28 | K142: 0
A143: Child's office visits | B143: =+Lists!D20*2 -> 286 | C143: =2*O46 -> 70 | D143: =2*P46 -> 50 | K143: 0
A144: Child's Tier 2 prescription drugs | B144: =+Lists!D30 -> 177 | C144: =O53 -> 62 | D144: =P53 -> 57 | K144: 0
A145: Total out-of-pocket expenses | B145: =+SUM(B140:B144) -> 684 | C145: =+SUM(C140:C144) -> 203 | D145: =+SUM(D140:D144) -> 160 | K145: 0
A146: University contribution to Health Savings Account | B146: =+IF($B$13="Employee Only",$N$59,$N$60) -> 650 | C146: N/A | D146: N/A | K146: 0
A147: Employee premium for coverage | B147: =+$B$16*12 -> 960 | C147: =+$B$17*12 -> 1440 | D147: =+$B$18*12 -> 1920 | K147: 0
A148: Employee net cost | B148: =+B145+B147-B146 -> 994 | C148: =+C145+C147 -> 1643 | D148: =+D145+D147 -> 2080 | K148: 0
K149: 0
A150: ="Based on these expenses, the lowest cost option for you would be the "&INDEX(B139:D139,MATCH(MIN(B148:D148),B148:D148,0))&"." -> Based on these expenses, the lowest cost option for you would be the Health Savings Plan. | K150: 0
K151: 0
K152: 0
A153: Employee and Children - High Health Care Needs | K153: 0
K154: 0
A155: Employee's Expenses | K155: 0
A156: ="• 1 preventive doctor’s office visit: "&TEXT(Lists!$D$19,"$0")&" ($0 member cost in-network, since in-network preventive visits are covered at 100%)" -> • 1 preventive doctor’s office visit: $193 ($0 member cost in-network, since in-network preventive visits are covered at 100%) | K156: 0
A157: ="• 2 specialist doctor’s office visits: "&TEXT(Lists!$D$23*2,"$000") -> • 2 specialist doctor’s office visits: $286 | K157: 0
A158: ="• 3 Tier 1 drugs: "&TEXT(Lists!$D$29*3,"$0") -> • 3 Tier 1 drugs: $117 | K158: 0
K159: 0
A160: Daughter's Expenses | K160: 0
A161: ="• 1 urgent care visit: "&TEXT(Lists!$D$26,"$0") -> • 1 urgent care visit: $174 | K161: 0
A162: ="• 1 Tier 3 medication: "&TEXT(Lists!$D$31,"$0,000") -> • 1 Tier 3 medication: $1,766 | K162: 0
A163: ="• 4 days in the hospital: "&TEXT(Lists!$D$22*4,"$0,000") -> • 4 days in the hospital: $12,220 | K163: 0
A164: ="• 2 specialist doctor’s office visits: "&TEXT(Lists!$D$23*2,"$000") -> • 2 specialist doctor’s office visits: $286 | K164: 0
K165: 0
A166: Son's Expenses | K166: 0
A167: ="• 2 specialist doctor’s office visits: "&TEXT(Lists!$D$23*2,"$000") -> • 2 specialist doctor’s office visits: $286 | K167: 0
A168: ="• 3 Tier 1 drugs: "&TEXT(Lists!$D$29*3,"$0") -> • 3 Tier 1 drugs: $117 | K168: 0
K169: 0
A170: Your Annual Costs | K170: 0
B171: Health Savings Plan | C171: Classic Plan | D171: Premier Plan | K171: 0
A172: Preventive visits for each family member | B172: 0 | C172: 0 | D172: 0 | K172: 0
A173: Employee's specialist office visits | B173: =+Lists!D23*2 -> 286 | C173: =O47*2 -> 110 | D173: =P47*2 -> 90 | K173: 0
A174: Employee's Tier 1 prescription drugs | B174: =+Lists!D29*3 -> 117 | C174: =O52*3 -> 54 | D174: =P52*3 -> 42 | K174: 0
A175: Daughter's urgent care visit | B175: =+Lists!D26 -> 174 | C175: =O47 -> 55 | D175: =P47 -> 45 | K175: 0
A176: Daughter's Tier 3 prescription drugs | B176: =+Lists!D31 -> 1766 | C176: =O54 -> 97 | D176: =P54 -> 92 | K176: 0
A177: Daughter's hospital stay | B177: =+(N41-B175-B176)+(Lists!$D$22*4-(N41-B175-B176))*N43 -> 2356 | C177: =MIN(O56+O41+(Lists!$D$22*4-O56-O41)*O43,O44-C175) -> 4292.5 | D177: =MIN(P56+P41+(Lists!$D$22*4-P56-P41)*P43,P44-D175) -> 3155 | K177: 0
A178: Daughter's specialist office visits | B178: =Lists!D23*2*N47 -> 28.6 | C178: =MIN(2*O47,O44-C175-C177) -> 110 | D178: =MIN(2*P47,P44-D175-D177) -> 0 | K178: 0
A179: Son's specialist office visits | B179: =+Lists!D23*2 -> 286 | C179: =2*O47 -> 110 | D179: =2*P47 -> 90 | K179: 0
A180: Son's Tier 1 prescription drugs | B180: =+Lists!D29*3 -> 117 | C180: =3*O52 -> 54 | D180: =3*P52 -> 42 | K180: 0
A181: Total out-of-pocket expenses | B181: =+SUM(B172:B180) -> 5130.6 | C181: =+SUM(C172:C180) -> 4882.5 | D181: =+SUM(D172:D180) -> 3556 | K181: 0
A182: University contribution to Health Savings Account | B182: =+IF($B$13="Employee Only",$N$59,$N$60) -> 650 | C182: N/A | D182: N/A | K182: 0
A183: Employee premium for coverage | B183: =+$B$16*12 -> 960 | C183: =+$B$17*12 -> 1440 | D183: =+$B$18*12 -> 1920 | K183: 0
A184: Employee net cost | B184: =+B181+B183-B182 -> 5440.6 | C184: =+C181+C183 -> 6322.5 | D184: =+D181+D183 -> 5476 | K184: 0
K185: 0
A186: ="Based on these expenses, the lowest cost option for you would be the "&INDEX(B171:D171,MATCH(MIN(B184:D184),B184:D184,0))&"." -> Based on these expenses, the lowest cost option for you would be the Health Savings Plan. | K186: 0
K187: 0
K188: 0
A189: Employee and Family - Low Health Care Needs | K189: =+IF(OR($B$13="Employee & Family",$L$16="N"),1,0) -> 0
K190: =+IF(OR($B$13="Employee & Family",$L$16="N"),1,0) -> 0
A191: Employee's Expenses | K191: 0
A192: ="• 1 doctor’s office visit: "&TEXT(Lists!$D$20,"$0") -> • 1 doctor’s office visit: $143 | K192: 0
A193: ="• 6 Tier 1 drugs: "&TEXT(Lists!$D$29*6,"$0") -> • 6 Tier 1 drugs: $234 | K193: 0
A194: ="• 1 Tier-2 drug: "&TEXT(Lists!$D$30,"$0") -> • 1 Tier-2 drug: $177 | K194: 0
K195: 0
A196: Spouse's Expenses | K196: 0
A197: ="• 2 specialist doctor’s office visits: "&TEXT(Lists!$D$23*2,"$000") -> • 2 specialist doctor’s office visits: $286 | K197: 0
A198: ="• 1 Tier-2 drug: "&TEXT(Lists!$D$30,"$0") -> • 1 Tier-2 drug: $177 | K198: 0
K199: 0
A200: Daughter's Expenses | K200: 0
A201: ="• 2 Tier 1 drugs: "&TEXT(Lists!$D$29*2,"$0") -> • 2 Tier 1 drugs: $78 | K201: 0
A202: ="• 1 doctor’s office visit: "&TEXT(Lists!$D$20,"$0") -> • 1 doctor’s office visit: $143 | K202: 0
A203: ="• 3 preventive doctor’s office visit: "&TEXT(Lists!$D$19*3,"$0")&" ($0 member cost in-network, since in-network preventive visits are covered at 100%)" -> • 3 preventive doctor’s office visit: $579 ($0 member cost in-network, since in-network preventive visits are covered at 100%) | K203: 0
K204: 0
A205: Your Annual Costs | K205: 0
B206: Health Savings Plan | C206: Classic Plan | D206: Premier Plan | K206: 0
A207: Preventive visits for each family member | B207: 0 | C207: 0 | D207: 0 | K207: 0
A208: Employee's office visit | B208: =+Lists!D20 -> 143 | C208: =O46 -> 35 | D208: =P46 -> 25 | K208: 0
... 41 more rows

Sheet Lists (hidden)
B2: For HSA | D2: Activate Macro?
B3: Employee Only | D3: Y
B4: Employee & Spouse | D4: N
B5: Employee & Child(ren)
B6: Employee & Family
B11: Password: | C11: SegalUAS2022
B18: Costs of Services | C18: 2023 Model | D18: 2024 Model | E18: Assumed Trend
B19: Preventative Office Visit | C19: 182 | D19: =+ROUND(C19*(1+E19),0) -> 193 | E19: 0.06
B20: Diagnostic Doctor Office Visit | C20: 135 | D20: =+ROUND(C20*(1+E20),0) -> 143 | E20: =+E19 -> 0.06
B21: ER Visit | C21: 1307 | D21: 1385 | E21: =+E20 -> 0.06
B22: 1 Day Hospital Stay | C22: 2882 | D22: 3055 | E22: 0.06
B23: Specialist Diagnostic Doctor Office Visit | C23: 135 | D23: 143 | E23: 0.06
B24: Ambulance | C24: 1102 | D24: 1168 | E24: 0.06
B25: Physical Therapy Visit | C25: 253 | D25: 268 | E25: 0.06
B26: Urgent Care Visit | C26: 164 | D26: 174 | E26: 0.06
B27: Outpatient Surgery | C27: 3343 | D27: 3544 | E27: 0.06
B29: Tier 1 Drug | C29: 36 | D29: =+ROUND(C29*(1+E29),0) -> 39 | E29: 0.09 | H29: < Trend from 7/1/23 Rate Projections Doc# 6224344
B30: Tier 2 Drug | C30: 162 | D30: 177 | E30: =+E29 -> 0.09
B31: Tier 3 Drug | C31: 1620 | D31: 1766 | E31: =+E30 -> 0.09
